bitfinex/quotes_BTCUSD_20241013
["timestamp","ask_amount","ask_price","bid_price","bid_amount"]
[1728840978034,0.81433463,62795.0,62794.0,0.00064]
[1728840978255,1.05975585,62795.0,62794.0,0.00064]
[1728840978488,0.84428054,62795.0,62794.0,0.00064]
[1728840978705,1.00539783,62795.0,62794.0,0.00064]
[1728840979167,0.73994923,62795.0,62794.0,0.00164]
[1728840979381,0.85928054,62795.0,62794.0,0.00164]
[1728840979601,0.74694923,62795.0,62794.0,0.00164]
[1728840979878,0.74494923,62795.0,62794.0,0.00164]
[1728840980087,0.73600332,62795.0,62794.0,0.00264]
[1728840980506,0.72200332,62795.0,62794.0,0.00164]
[1728840980727,0.71500332,62795.0,62794.0,0.00164]
[1728840980938,0.87737303,62795.0,62794.0,0.00164]
[1728840981204,0.89137303,62795.0,62794.0,0.00264]
[1728840981422,0.89837303,62795.0,62794.0,0.00264]
[1728840981636,0.89837303,62795.0,62794.0,0.00164]
[1728840981637,0.88437303,62795.0,62794.0,0.00164]
[1728840981852,0.77004172,62795.0,62794.0,0.00164]
[1728840982070,1.00770434,62795.0,62794.0,0.00264]
[1728840982298,0.89537303,62795.0,62794.0,0.00264]
[1728840982520,1.00770434,62795.0,62794.0,0.00264]
[1728840982736,1.00970434,62795.0,62794.0,0.00264]
[1728840983374,1.03465023,62795.0,62794.0,0.00264]
[1728840983602,1.03265023,62795.0,62794.0,0.00264]
[1728840985544,0.80798761,62795.0,62794.0,0.00264]
[1728840985763,0.91531892,62795.0,62794.0,0.00264]
[1728840986000,1.02765023,62795.0,62794.0,0.00264]
[1728840986426,1.01465023,62795.0,62794.0,0.00164]
[1728840986639,1.00565023,62795.0,62794.0,0.00064]
[1728840987088,1.02065023,62795.0,62794.0,0.00164]
[1728840987317,1.03465023,62795.0,62794.0,0.00264]
[1728840987746,1.02065023,62795.0,62794.0,0.00164]
[1728840988180,1.03265023,62795.0,62794.0,0.00264]
[1728840988883,1.03065023,62795.0,62794.0,0.00264]
[1728840989748,1.03265023,62795.0,62794.0,0.00264]
[1728840989958,1.00770434,62795.0,62794.0,0.00264]
[1728840991257,1.00570434,62795.0,62794.0,0.00264]
[1728840991476,0.89337303,62795.0,62794.0,0.00264]
[1728840991688,1.00570434,62795.0,62794.0,0.00264]
[1728840992329,1.00770434,62795.0,62794.0,0.00264]
[1728840993855,0.98270434,62795.0,62794.0,0.00064]
[1728840994062,0.98270434,62795.0,62794.0,0.00164]
[1728840994063,0.99670434,62795.0,62794.0,0.00164]
[1728840994277,1.01070434,62795.0,62794.0,0.00264]
[1728840994511,1.03565127,62795.0,62794.0,0.00264]
[1728840994717,1.00765127,62795.0,62794.0,0.00064]
[1728840994950,1.02165127,62795.0,62794.0,0.00164]
[1728840995205,1.03565127,62795.0,62794.0,0.00264]
[1728840996025,1.02165127,62795.0,62794.0,0.00164]
[1728840996683,1.00765127,62795.0,62794.0,0.00064]
[1728840996892,1.02165127,62795.0,62794.0,0.00064]
[1728840997095,1.03565127,62795.0,62794.0,0.00064]
[1728841000007,1.01070434,62795.0,62794.0,0.00064]
[1728841000664,1.01070434,62795.0,62777.0,0.0975]
[1728841000665,0.318538,62787.0,62783.0,0.24042122]
[1728841000886,0.159281,62783.0,62778.0,0.159289]
[1728841001089,0.159281,62783.0,62775.0,0.05900244]
[1728841001090,0.11233131,62780.0,62776.0,0.318591]
[1728841001301,0.11233131,62780.0,62778.0,0.15929]
[1728841001519,0.11233131,62780.0,62772.0,0.32025]
[1728841001744,0.11233131,62780.0,62777.0,0.159292]
[1728841003009,0.11233131,62780.0,62775.0,0.159297]
[1728841003218,0.11233131,62780.0,62773.0,0.03192]
[1728841003434,0.11233131,62780.0,62776.0,0.159296]
[1728841003643,0.11233131,62780.0,62775.0,0.159298]
[1728841004119,0.11233131,62780.0,62776.0,0.00498889]
[1728841004346,0.11233131,62777.0,62773.0,0.03192]
[1728841004551,0.11233131,62775.0,62774.0,0.0049889]
[1728841004796,0.27163031,62775.0,62774.0,0.0049889]
[1728841005015,0.159301,62774.0,62773.0,0.03192]
[1728841005233,0.11233131,62777.0,62773.0,0.03690915]
[1728841005454,0.11233131,62774.0,62773.0,0.03192]
[1728841005675,0.02494851,62778.0,62773.0,0.191224]
[1728841005893,0.11233131,62776.0,62773.0,0.191222]
[1728841006100,0.11233131,62776.0,62773.0,0.03192]
[1728841006744,0.001,62774.0,62773.0,0.159302]
[1728841006955,0.001,62774.0,62773.0,0.191222]
[1728841007393,0.11233131,62776.0,62774.0,0.1593]
[1728841007611,0.11233131,62776.0,62773.0,0.350525]
[1728841008090,0.02494851,62778.0,62774.0,0.1739]
[1728841008299,0.1,62784.0,62781.0,0.159282]
[1728841008514,0.1,62784.0,62779.0,0.318573]
[1728841008724,0.11233131,62787.0,62783.0,0.159278]
[1728841008939,0.11233131,62787.0,62783.0,0.0764]
[1728841009172,0.1,62786.0,62783.0,0.235678]
[1728841009372,0.005,62784.0,62783.0,0.235678]
[1728841009793,0.1,62786.0,62783.0,0.0764]
[1728841009998,0.1,62786.0,62785.0,0.159273]
[1728841010222,0.1,62790.0,62785.0,0.159273]
[1728841011090,0.1,62790.0,62783.0,0.1739]
[1728841011291,0.259262,62790.0,62784.0,0.159274]
[1728841011500,0.007,62785.0,62784.0,0.159274]
[1728841011757,0.11233131,62787.0,62783.0,0.1739]
[1728841011966,0.11233131,62787.0,62783.0,0.333178]
[1728841011967,0.107,62786.0,62783.0,0.333178]
[1728841012180,0.107,62786.0,62783.0,0.1739]
[1728841012402,0.1,62786.0,62783.0,0.333177]
[1728841012606,0.006,62785.0,62783.0,0.333177]
[1728841013054,0.1,62786.0,62784.0,0.159274]
[1728841013274,0.1,62786.0,62783.0,0.333177]
[1728841013474,0.007,62785.0,62783.0,0.333177]
[1728841013895,0.007,62785.0,62783.0,0.1739]
[1728841014384,0.007,62785.0,62784.0,0.159276]
[1728841015014,0.107,62786.0,62784.0,0.159276]
[1728841015245,0.107,62786.0,62783.0,0.333178]
[1728841015461,0.1,62788.0,62783.0,0.1739]
[1728841015697,0.006,62785.0,62784.0,0.159275]
[1728841015906,0.006,62785.0,62783.0,0.1739]
[1728841016314,0.008,62786.0,62783.0,0.333178]
[1728841016526,0.168267,62788.0,62783.0,0.1739]
[1728841016758,0.1,62787.0,62783.0,0.333176]
[1728841016954,0.007,62785.0,62783.0,0.333176]
[1728841017370,0.007,62785.0,62784.0,0.159276]
[1728841017787,0.007,62785.0,62783.0,0.1739]
[1728841018297,0.1,62788.0,62783.0,0.1739]
[1728841018298,0.007,62786.0,62783.0,0.333178]
[1728841018505,0.166271,62786.0,62783.0,0.1739]
[1728841018732,0.418535,62788.0,62783.0,0.1739]
[1728841018733,0.418535,62788.0,62783.0,0.333178]
[1728841018955,0.159273,62786.0,62783.0,0.1739]
[1728841019178,0.006,62785.0,62783.0,0.1739]
[1728841019406,0.159301,62775.0,62771.0,0.0714529]
[1728841019638,0.159301,62775.0,62773.0,0.00082]
[1728841019639,0.27163231,62774.0,62773.0,0.00082]
[1728841021075,0.27463231,62774.0,62773.0,0.00082]
[1728841021952,0.33036875,62774.0,62773.0,0.00082]
[1728841022398,0.162301,62774.0,62773.0,0.00082]
[1728841022605,0.318582,62779.0,62773.0,0.00082]
[1728841022848,0.005,62774.0,62773.0,0.241624]
[1728841023076,0.006,62774.0,62773.0,0.241624]
[1728841023305,0.005,62774.0,62773.0,0.241624]
[1728841023751,0.011,62774.0,62773.0,0.241624]
[1728841023989,0.011,62774.0,62773.0,0.08232]
[1728841024204,0.164301,62774.0,62773.0,0.00082]
[1728841024457,0.002,62774.0,62773.0,0.00082]
[1728841024693,0.161301,62774.0,62773.0,0.00082]
[1728841025970,0.159301,62774.0,62773.0,0.00082]
[1728841026814,0.159299,62775.0,62773.0,0.00082]
[1728841027066,0.159301,62774.0,62773.0,0.00082]
[1728841028774,0.159299,62775.0,62773.0,0.00082]
[1728841029340,0.00164,62776.0,62773.0,0.00082]
[1728841029580,0.159301,62774.0,62773.0,0.00082]
[1728841030000,0.00164,62776.0,62773.0,0.00082]
[1728841030249,0.160937,62776.0,62773.0,0.00082]
[1728841030470,0.159301,62774.0,62773.0,0.00082]
[1728841030935,0.00264,62776.0,62773.0,0.00082]
[1728841031373,0.159299,62775.0,62773.0,0.00082]
[1728841031991,0.160937,62776.0,62773.0,0.160123]
[1728841032221,0.00164,62776.0,62773.0,0.00082]
[1728841032425,0.00164,62776.0,62773.0,0.160123]
[1728841032626,0.160937,62776.0,62773.0,0.00082]
[1728841032839,0.00164,62776.0,62773.0,0.00082]
[1728841033041,0.00164,62776.0,62773.0,0.160123]
[1728841033249,0.160937,62776.0,62773.0,0.160123]
[1728841033466,0.00164,62776.0,62773.0,0.00082]
[1728841033724,0.161938,62776.0,62773.0,0.00082]
[1728841033941,0.00264,62776.0,62773.0,0.00082]
[1728841034377,0.161937,62776.0,62773.0,0.00082]
[1728841034603,0.00264,62776.0,62775.0,0.159299]
[1728841034831,0.00264,62776.0,62775.0,0.27590461]
[1728841035049,0.00264,62776.0,62775.0,0.71789637]
[1728841035252,0.00264,62776.0,62775.0,0.71471076]
[1728841035472,0.00264,62776.0,62775.0,0.72469914]
[1728841035908,0.00364,62776.0,62775.0,0.72469914]
[1728841036362,0.00264,62776.0,62775.0,0.72469914]
[1728841036573,0.00264,62776.0,62775.0,0.77245836]
[1728841036784,0.00264,62776.0,62775.0,0.73662703]
[1728841036785,0.00364,62776.0,62775.0,0.73662703]
[1728841036997,0.00364,62776.0,62775.0,0.91281009]
[1728841037214,0.00364,62776.0,62775.0,1.1704079]
[1728841037450,0.00364,62776.0,62775.0,1.00326582]
[1728841037661,0.00264,62776.0,62775.0,1.18801676]
[1728841038077,0.00364,62776.0,62775.0,1.18801676]
[1728841038305,0.00264,62776.0,62775.0,1.18801676]
[1728841038562,0.00264,62776.0,62775.0,1.18801327]
[1728841038803,0.24042122,62793.0,62792.0,0.387675]
[1728841039021,0.24042122,62793.0,62792.0,0.55474275]
[1728841039427,0.00164,62795.0,62792.0,0.55474275]
[1728841039428,0.00164,62795.0,62794.0,0.21417]
[1728841039852,0.00164,62795.0,62794.0,0.21735455]
[1728841040130,0.00164,62795.0,62794.0,0.21417]
[1728841041915,0.00264,62795.0,62794.0,0.21417]
[1728841042378,0.00364,62795.0,62794.0,0.21517]
[1728841042599,0.00364,62795.0,62794.0,0.46237856]
[1728841042811,0.00364,62795.0,62794.0,0.45919401]
[1728841045586,0.00364,62795.0,62794.0,0.47536027]
[1728841045814,0.00364,62795.0,62794.0,0.45919401]
[1728841046023,0.00364,62795.0,62794.0,0.45419401]
[1728841046246,0.00364,62795.0,62794.0,0.19217]
[1728841052081,0.00364,62795.0,62794.0,0.16025]
[1728841052279,0.00364,62795.0,62794.0,0.001]
[1728841052969,0.00264,62795.0,62793.0,0.191172]
[1728841053617,0.00264,62795.0,62794.0,0.001]
[1728841053618,0.00364,62795.0,62794.0,0.001]
[1728841053823,0.00364,62795.0,62794.0,0.16025]
[1728841054038,0.00264,62795.0,62794.0,0.15925]
[1728841054725,0.00264,62795.0,62793.0,0.191171]
[1728841054935,0.00164,62795.0,62793.0,0.191171]
[1728841055381,0.00264,62795.0,62793.0,0.192171]
[1728841055876,0.00264,62795.0,62793.0,0.03292]
[1728841056091,0.00264,62795.0,62793.0,0.192172]
[1728841056538,0.00264,62795.0,62793.0,0.03292]
[1728841056760,0.39967122,62794.0,62793.0,0.001]
[1728841057007,0.32631775,62794.0,62793.0,0.001]
[1728841058748,0.33131775,62794.0,62793.0,0.001]
[1728841058961,0.159271,62786.0,62781.0,0.159283]
[1728841059445,0.159268,62787.0,62782.0,0.15928]
[1728841059868,0.24042122,62786.0,62779.0,0.03192]
[1728841060078,0.24042122,62786.0,62780.0,0.191204]
[1728841060079,0.159272,62786.0,62780.0,0.191204]
[1728841060325,0.159272,62786.0,62781.0,0.159282]
[1728841061171,0.159272,62786.0,62782.0,0.159281]
[1728841061596,0.318527,62789.0,62782.0,0.159281]
[1728841061794,0.159269,62787.0,62782.0,0.159281]
[1728841062248,0.159269,62787.0,62782.0,0.160281]
[1728841062470,0.159264,62789.0,62783.0,0.159277]
[1728841062683,0.159267,62788.0,62783.0,0.191197]
[1728841063809,0.159267,62788.0,62783.0,0.192197]
[1728841065668,0.159268,62787.0,62783.0,0.191197]
[1728841066113,0.159268,62787.0,62783.0,0.001]
[1728841066325,0.159268,62787.0,62783.0,0.03292]
[1728841066522,0.159268,62787.0,62783.0,0.03192]
[1728841066948,0.159268,62787.0,62783.0,0.03292]
[1728841067622,0.159268,62787.0,62784.0,0.03192]
[1728841068700,0.159268,62787.0,62783.0,0.03192]
[1728841069489,0.159268,62787.0,62784.0,0.001]
[1728841070635,0.159268,62787.0,62781.0,0.03192]
[1728841070874,0.159268,62787.0,62783.0,0.191198]
[1728841071925,0.159268,62787.0,62783.0,0.192198]
[1728841072197,0.159268,62788.0,62783.0,0.03292]
[1728841072402,0.159266,62788.0,62783.0,0.192196]
[1728841072830,0.0935,62792.0,62786.0,0.159271]
[1728841073038,0.55893122,62793.0,62784.0,0.03192]
[1728841073039,0.55892822,62793.0,62784.0,0.03192]
[1728841073255,0.159267,62788.0,62784.0,0.03192]
[1728841073480,0.318512,62792.0,62785.0,0.159273]
[1728841073688,0.159265,62789.0,62784.0,0.191196]
[1728841074100,0.159266,62788.0,62784.0,0.191196]
[1728841074793,0.159264,62789.0,62785.0,0.159272]
[1728841075205,0.318522,62790.0,62784.0,0.191195]
[1728841075206,0.159266,62788.0,62784.0,0.191195]
[1728841076073,0.159266,62788.0,62785.0,0.001]
[1728841076683,0.318522,62790.0,62784.0,0.03192]
[1728841076811,0.318522,62790.0,62784.0,0.192195]
[1728841076812,0.159267,62788.0,62784.0,0.192195]
[1728841077233,0.001638,62794.0,62785.0,0.1683]
[1728841077487,0.001638,62794.0,62790.0,0.159258]
[1728841078480,0.001638,62794.0,62789.0,0.318523]
[1728841078481,0.160889,62794.0,62789.0,0.318523]
[1728841078703,0.160889,62794.0,62791.0,0.159258]
[1728841079325,0.164889,62794.0,62791.0,0.159258]
[1728841079780,0.165889,62794.0,62791.0,0.159258]
[1728841079992,0.159254,62793.0,62789.0,0.318523]
[1728841080206,0.159254,62793.0,62790.0,0.15926]
[1728841080413,0.010638,62794.0,62793.0,0.327553]
[1728841081048,0.015638,62794.0,62793.0,0.359473]
[1728841081256,0.005638,62794.0,62793.0,0.359473]
[1728841081468,0.001638,62794.0,62793.0,0.359473]
[1728841081912,0.006638,62794.0,62793.0,0.359473]
[1728841082439,0.001638,62794.0,62793.0,0.359473]
[1728841082672,0.002638,62794.0,62793.0,0.360473]
[1728841082940,0.002638,62794.0,62793.0,0.267973]
[1728841083192,0.005638,62794.0,62793.0,0.267973]
[1728841083436,0.002638,62794.0,62793.0,0.267973]
[1728841083945,0.003638,62794.0,62793.0,0.267973]
[1728841084205,0.003638,62794.0,62793.0,0.192173]
[1728841084441,0.003638,62794.0,62793.0,0.03292]
[1728841084710,0.003638,62794.0,62793.0,0.001]
[1728841084711,0.162888,62794.0,62793.0,0.001]
[1728841085373,0.002638,62794.0,62784.0,0.191195]
[1728841085592,0.16706775,62785.0,62783.0,0.03192]
[1728841085813,0.16706775,62785.0,62777.0,0.01193092]
[1728841085814,0.24916775,62785.0,62777.0,0.01193092]
[1728841086062,0.159291,62778.0,62777.0,0.01193092]
[1728841087821,0.159294,62777.0,62775.0,0.000819]
[1728841088470,0.331594,62777.0,62775.0,0.000819]
[1728841089411,0.49381801,62777.0,62775.0,0.000819]
[1728841089642,0.59381801,62777.0,62775.0,0.000819]
[1728841089852,0.59281801,62777.0,62775.0,0.000819]
[1728841090064,0.60081801,62777.0,62775.0,0.000819]
[1728841090287,0.76218772,62777.0,62775.0,0.000819]
[1728841090502,0.59981801,62777.0,62775.0,0.000819]
[1728841091455,0.77288576,62777.0,62775.0,0.000819]
[1728841091685,0.78488576,62777.0,62775.0,0.000819]
[1728841092575,0.78688576,62777.0,62775.0,0.000819]
[1728841092838,0.93099611,62777.0,62775.0,0.000819]
[1728841093063,0.91899611,62777.0,62775.0,0.000819]
[1728841093287,0.94699611,62777.0,62775.0,0.000819]
[1728841094394,0.97194775,62777.0,62775.0,0.000819]
[1728841095498,0.64576965,62777.0,62775.0,0.000819]
[1728841100150,0.62081801,62777.0,62775.0,0.000819]
[1728841102046,0.62081801,62777.0,62763.0,0.00164]
[1728841102047,0.1744,62769.0,62763.0,0.00164]
[1728841102279,0.42639475,62764.0,62763.0,0.00164]
[1728841102534,0.72824884,62764.0,62763.0,0.00164]
[1728841102782,0.73024884,62764.0,62763.0,0.00164]
[1728841103316,0.75520467,62764.0,62763.0,0.00164]
[1728841104117,0.75320467,62764.0,62763.0,0.00164]
[1728841104348,0.75520467,62764.0,62763.0,0.00164]
[1728841104584,0.76720467,62764.0,62763.0,0.00164]
[1728841104820,0.75320467,62764.0,62763.0,0.00164]
[1728841105060,0.75520467,62764.0,62763.0,0.00164]
[1728841105320,0.78120467,62764.0,62763.0,0.00164]
[1728841105807,0.76920467,62764.0,62763.0,0.00164]
[1728841106053,0.76720467,62764.0,62763.0,0.00164]
[1728841106282,0.78120467,62764.0,62763.0,0.00164]
[1728841106778,0.76720467,62764.0,62763.0,0.00164]
[1728841107268,0.78120467,62764.0,62763.0,0.00164]
[1728841107745,0.78320467,62764.0,62763.0,0.00164]
[1728841108164,0.78120467,62764.0,62763.0,0.00164]
[1728841108883,0.47350684,62764.0,62763.0,0.00164]
[1728841109138,0.64057459,62764.0,62763.0,0.00164]
[1728841109593,0.45439475,62764.0,62763.0,0.00164]
[1728841110568,0.287327,62764.0,62763.0,0.00164]
[1728841111072,0.028,62764.0,62763.0,0.00164]
[1728841111306,0.287327,62764.0,62763.0,0.00164]
[1728841111534,0.259327,62764.0,62763.0,0.00164]
[1728841111761,0.272327,62764.0,62763.0,0.00164]
[1728841111991,0.286327,62764.0,62763.0,0.00164]
[1728841112467,0.272327,62764.0,62763.0,0.00164]
[1728841112734,0.02,62764.0,62763.0,0.160969]
[1728841112966,0.02,62764.0,62763.0,0.183969]
[1728841113399,0.007,62764.0,62763.0,0.183849]
[1728841113615,0.159314,62769.0,62764.0,0.023]
[1728841113827,0.19202122,62772.0,62764.0,0.023]
[1728841114058,0.1,62771.0,62765.0,0.318648]
[1728841114264,0.1,62769.0,62764.0,0.182325]
[1728841114478,0.1,62769.0,62764.0,0.023]
[1728841114692,0.1,62773.0,62769.0,0.159311]
[1728841114908,0.39973022,62771.0,62767.0,0.237317]
[1728841115123,0.159309,62771.0,62767.0,0.237317]
[1728841115837,0.004,62769.0,62767.0,0.237317]
[1728841116302,0.166309,62771.0,62767.0,0.237317]
[1728841116529,0.172309,62771.0,62767.0,0.237317]
[1728841116747,0.013,62771.0,62767.0,0.078]
[1728841116956,0.159314,62769.0,62767.0,0.078]
[1728841117180,0.159316,62768.0,62767.0,0.000819]
[1728841117389,0.159315,62769.0,62767.0,0.000819]
[1728841118275,0.168315,62769.0,62767.0,0.000819]
[1728841120174,0.159316,62768.0,62767.0,0.000819]
[1728841121749,0.196222,62768.0,62767.0,0.000819]
[1728841121977,0.32754001,62768.0,62767.0,0.000819]
[1728841122835,0.32454001,62768.0,62767.0,0.000819]
[1728841123467,0.3584942,62768.0,62767.0,0.000819]
[1728841123904,0.3544942,62768.0,62767.0,0.000819]
[1728841124338,0.3644942,62768.0,62767.0,0.000819]
[1728841124556,0.51586391,62768.0,62767.0,0.000819]
[1728841124985,0.51986391,62768.0,62767.0,0.000819]
[1728841125216,0.53186391,62768.0,62767.0,0.000819]
[1728841127754,0.63186391,62768.0,62767.0,0.000819]
[1728841130108,0.60690972,62768.0,62767.0,0.000819]
[1728841132991,0.63186464,62768.0,62767.0,0.000819]
[1728841133995,0.61886464,62768.0,62767.0,0.000819]
[1728841134470,0.62086464,62768.0,62767.0,0.000819]
[1728841134704,0.60686464,62768.0,62767.0,0.000819]
[1728841134956,0.62086464,62768.0,62767.0,0.000819]
[1728841135194,0.63486464,62768.0,62767.0,0.000819]
[1728841135424,0.62086464,62768.0,62767.0,0.000819]
[1728841135655,0.63486464,62768.0,62767.0,0.000819]
[1728841138590,0.68243343,62768.0,62767.0,0.000819]
[1728841139256,0.63486464,62768.0,62767.0,0.000819]
[1728841139484,0.63650464,62768.0,62767.0,0.000819]
[1728841140003,0.98647239,62768.0,62767.0,0.000819]
[1728841140230,0.91578598,62768.0,62767.0,0.000819]
[1728841140465,0.79644972,62768.0,62767.0,0.000819]
[1728841141229,1.01844972,62768.0,62767.0,0.000819]
[1728841141480,1.04644972,62768.0,62767.0,0.000819]
[1728841141943,1.01844972,62768.0,62767.0,0.000819]
[1728841142425,1.04644972,62768.0,62767.0,0.000819]
[1728841142708,1.16574943,62768.0,62767.0,0.000819]
[1728841142937,1.03244972,62768.0,62767.0,0.000819]
[1728841143175,1.17670639,62768.0,62767.0,0.000819]
[1728841143423,1.17670639,62768.0,62747.0,0.0763]
[1728841143424,0.159382,62742.0,62741.0,0.24115024]
[1728841143663,0.32644975,62742.0,62741.0,0.24115024]
[1728841143896,0.159382,62742.0,62741.0,0.00072902]
[1728841144155,0.159382,62742.0,62741.0,0.07702902]
[1728841145145,0.178382,62742.0,62741.0,0.07702902]
[1728841145382,0.33544975,62742.0,62741.0,0.07702902]
[1728841145840,0.34444975,62742.0,62741.0,0.07702902]
[1728841147085,0.33544975,62742.0,62741.0,0.07702902]
[1728841147557,0.34644975,62742.0,62741.0,0.07702902]
[1728841148018,0.33544975,62742.0,62741.0,0.07702902]
[1728841148267,0.34444975,62742.0,62741.0,0.07702902]
[1728841150183,0.33544975,62742.0,62741.0,0.07702902]
[1728841150449,0.34644975,62742.0,62741.0,0.07702902]
[1728841150930,0.32644975,62742.0,62741.0,0.07702902]
[1728841151190,0.33544975,62742.0,62741.0,0.07702902]
[1728841151437,0.34644975,62742.0,62741.0,0.00072902]
[1728841151692,0.33544975,62742.0,62741.0,0.00072902]
[1728841152188,0.34444975,62742.0,62741.0,0.00154902]
[1728841152477,0.33544975,62742.0,62741.0,0.00154902]
[1728841152943,0.34644975,62742.0,62741.0,0.00154902]
[1728841153191,0.33744975,62742.0,62741.0,0.00154902]
[1728841153449,0.181382,62742.0,62741.0,0.00154902]
[1728841153695,0.34844975,62742.0,62741.0,0.00154902]
[1728841154362,0.32644975,62742.0,62741.0,0.00154902]
[1728841154786,0.34944975,62742.0,62741.0,0.00154902]
[1728841155226,0.33844975,62742.0,62741.0,0.00154902]
[1728841155463,0.35244975,62742.0,62741.0,0.00154902]
[1728841156363,0.173382,62742.0,62741.0,0.00154902]
[1728841156599,0.187382,62742.0,62741.0,0.00154902]
[1728841157538,0.173382,62742.0,62741.0,0.00154902]
[1728841157773,0.159382,62742.0,62741.0,0.00154902]
[1728841158021,0.187382,62742.0,62741.0,0.00154902]
[1728841159219,0.173382,62742.0,62741.0,0.00154902]
[1728841159442,0.187382,62742.0,62741.0,0.00154902]
[1728841161820,0.187382,62742.0,62731.0,0.00093]
[1728841161821,0.25939,62739.0,62731.0,0.00093]
[1728841162006,0.42061401,62739.0,62731.0,0.00093]
[1728841163334,0.43461401,62739.0,62731.0,0.00093]
[1728841163548,0.76874951,62739.0,62731.0,0.00093]
[1728841163760,0.78274951,62739.0,62731.0,0.00093]
[1728841164199,0.76874951,62739.0,62731.0,0.00093]
[1728841164854,0.77971655,62739.0,62731.0,0.00093]
[1728841165078,0.93835104,62739.0,62731.0,0.00093]
[1728841165315,1.19277226,62739.0,62731.0,0.00093]
[1728841165558,0.42647575,62732.0,62731.0,0.00093]
[1728841165779,0.58769976,62732.0,62731.0,0.00093]
[1728841166217,0.61266917,62732.0,62731.0,0.00093]
[1728841167284,0.62666917,62732.0,62731.0,0.00093]
[1728841168456,0.72300525,62732.0,62731.0,0.00093]
[1728841168671,0.70900525,62732.0,62731.0,0.00093]
[1728841169130,0.70900525,62732.0,62721.0,0.00277]
[1728841169131,0.159433,62722.0,62721.0,0.00277]
[1728841170531,0.166433,62722.0,62721.0,0.00277]
[1728841170768,0.40685422,62722.0,62721.0,0.00277]
[1728841170982,0.166433,62722.0,62721.0,0.00277]
[1728841171469,0.166433,62722.0,62721.0,0.00877]
[1728841172589,0.173433,62722.0,62721.0,0.00877]
[1728841173690,0.014,62722.0,62721.0,0.168206]
[1728841173917,0.014,62722.0,62721.0,0.340006]
[1728841176669,0.014,62722.0,62721.0,0.340826]
[1728841177587,0.007,62722.0,62721.0,0.340826]
[1728841178091,0.31882,62732.0,62723.0,0.318858]
[1728841178351,0.31882,62732.0,62725.0,0.159425]
[1728841178352,0.159419,62728.0,62725.0,0.159425]
[1728841178867,0.318828,62730.0,62722.0,0.318864]
[1728841179103,0.159419,62728.0,62723.0,0.478287]
[1728841179332,0.159424,62726.0,62723.0,0.159428]
[1728841179584,0.159423,62727.0,62722.0,0.159431]
[1728841179821,0.159424,62726.0,62721.0,0.500262]
[1728841180047,0.006,62728.0,62725.0,0.159425]
[1728841180280,0.159425,62726.0,62721.0,0.500262]
[1728841180515,0.159417,62729.0,62724.0,0.159426]
[1728841180750,0.165419,62728.0,62724.0,0.159426]
[1728841181031,0.159423,62726.0,62723.0,0.159431]
[1728841181278,0.159422,62727.0,62723.0,0.15943]
[1728841182667,0.005,62727.0,62724.0,0.159427]
[1728841182899,0.164421,62727.0,62724.0,0.159427]
[1728841183144,0.005,62727.0,62724.0,0.318855]
[1728841183410,0.005,62727.0,62722.0,0.318863]
[1728841183650,0.164421,62727.0,62724.0,0.159427]
[1728841184091,0.169421,62727.0,62724.0,0.159427]
[1728841184327,0.005,62727.0,62723.0,0.1803]
[1728841184562,0.005,62727.0,62726.0,0.43249075]
[1728841184851,0.01,62727.0,62726.0,0.73292715]
[1728841185073,0.005,62727.0,62726.0,0.73490715]
[1728841185297,0.01,62727.0,62726.0,0.73292715]
[1728841185768,0.01,62727.0,62726.0,0.73490715]
[1728841186015,0.005,62727.0,62726.0,0.74685236]
[1728841186246,0.24042122,62738.0,62735.0,0.03192]
[1728841186471,0.24042122,62738.0,62737.0,0.32646275]
[1728841187173,0.24042122,62745.0,62744.0,0.159377]
[1728841187903,0.00164,62748.0,62747.0,0.15937]
[1728841188373,0.00164,62748.0,62744.0,0.318753]
[1728841188593,0.00164,62748.0,62746.0,0.159372]
[1728841188811,0.00164,62748.0,62741.0,0.03192]
[1728841189034,0.007,62745.0,62744.0,0.159377]
[1728841189533,0.161007,62748.0,62745.0,0.159374]
[1728841190017,0.00164,62748.0,62745.0,0.159374]
[1728841190239,0.00364,62748.0,62745.0,0.159374]
[1728841190457,0.00364,62748.0,62743.0,0.31876]
[1728841190673,0.00364,62748.0,62741.0,0.03192]
[1728841190674,0.159371,62747.0,62741.0,0.350688]
[1728841190896,0.159371,62747.0,62742.0,0.318763]
[1728841191141,0.159371,62747.0,62745.0,0.006]
[1728841191412,0.245308,62748.0,62745.0,0.006]
[1728841191633,0.241308,62748.0,62745.0,0.006]
[1728841192105,0.243308,62748.0,62745.0,0.006]
[1728841192563,0.163008,62748.0,62745.0,0.006]
[1728841193730,0.00364,62748.0,62745.0,0.165374]
[1728841194187,0.15937,62747.0,62745.0,0.006]
[1728841194843,0.00464,62748.0,62745.0,0.006]
[1728841195080,0.323378,62748.0,62745.0,0.006]
[1728841195342,0.320378,62748.0,62745.0,0.006]
[1728841195557,0.159372,62746.0,62745.0,0.006]
[1728841196250,0.159372,62747.0,62745.0,0.006]
[1728841196469,0.15937,62747.0,62745.0,0.006]
[1728841197152,0.159372,62746.0,62745.0,0.006]
[1728841197377,0.159371,62747.0,62745.0,0.006]
[1728841198279,0.159372,62746.0,62745.0,0.006]
[1728841198705,0.159372,62746.0,62745.0,0.007]
[1728841198956,0.16037,62747.0,62745.0,0.007]
[1728841199456,0.320378,62748.0,62745.0,0.007]
[1728841199665,0.159372,62746.0,62745.0,0.007]
[1728841200214,0.159372,62746.0,62745.0,0.006]
[1728841200624,0.16037,62747.0,62745.0,0.006]
[1728841200842,0.001,62747.0,62745.0,0.006]
[1728841201281,0.001,62747.0,62745.0,0.165373]
[1728841201550,0.001,62747.0,62746.0,0.159372]